Cogmind - Beta 9.4 --- EXPLORER MODE // 2020.03.01 @ 16:35:56 Player: WESDADDY Result: Destroyed by D-53 Grenadier with Mini Grenade Launcher Performance ------------- Evolutions (0) 0 Regions Visited (2) 400 Robots Destroyed (2) 10 Value Destroyed (32) 32 Prototype IDs (0) 0 Alien Tech Used (0) 0 Bonus (0) 0 TOTAL SCORE: 442 Bonus ------- None Cogmind --------- Core Integrity 0/250 Matter 300/300 Energy 99/100 System Corruption 3% Temperature Cool (0) Movement Core (50) Location -10/Mines Parts ------- > --- POWER (1) -------- (None) > --- PROPULSION (2) --- (None) > --- UTILITY (3) ------ Power Shielding > --- WEAPON (2) ------- (None) > --- INVENTORY (4) ---- (None) Peak State ------------ > --- POWER ------------ Light Ion Engine > --- PROPULSION ------- Aluminum Leg Aluminum Leg > --- UTILITY ---------- Targeting Computer Power Shielding > --- WEAPON ----------- Medium Laser Light Assault Rifle > --- INVENTORY -------- (None) [Rating: 7] Favorites ----------- Power Light Ion Engine Engine Light Ion Engine Propulsion Aluminum Leg Leg Aluminum Leg Utility Power Shielding Processor Targeting Computer Protection Power Shielding Weapon Light Assault Rifle Energy Gun Medium Laser Ballistic Gun Light Assault Rifle Build | -11 -10 -10 ------- Run | Scr Mat Min Slots Evolved 1 | . 1 . Power . | . . . Propulsion . | . . . Utility 1 | . 1 . Weapon . | . . . Parts Attached 7 | 7 . . Power 1 | 1 . . Engine 1 | 1 . . Core . | . . . Reactor . | . . . Propulsion 2 | 2 . . Treads . | . . . Leg 2 | 2 . . Wheel . | . . . Hover . | . . . Flight . | . . . Utility 2 | 2 . . Device . | . . . Storage . | . . . Processor 1 | 1 . . Hackware . | . . . Protection 1 | 1 . . Artifact . | . . . Weapon 2 | 2 . . Energy Gun 1 | 1 . . Energy Cannon . | . . . Ballistic Gun 1 | 1 . . Ballistic Cannon . | . . . Launcher . | . . . Special Weapon . | . . . Impact Weapon . | . . . Slashing Weapon . | . . . Piercing Weapon . | . . . Special Melee Weapon . | . . . Unidentified Prototypes . | . . . Parts Lost 6 | . . 6 Power 1 | . . 1 Propulsion 2 | . . 2 Utility 1 | . . 1 Weapon 2 | . . 2 Highest Loss Streak 6 | . . 6 Average Slot Usage (%) 64 | . 87 45 Engine 9 | . 12 7 Leg 21 | . 25 18 Processor 6 | . 12 1 Protection 12 | . 12 12 Energy Gun 6 | . 12 1 Ballistic Gun 7 | . 12 3 Naked Turns . | . . . Heaviest Build 7 | 7 7 7 Greatest Support 20 | 20 20 20 Greatest Overweight (x) . | . . . Average Overweight (x) . | . . . Largest Inventory Capacity 4 | 4 4 4 Average Capacity 4 | 4 4 4 Most Carried . | . . . Average Carried . | . . . Final Capacity 4 | 4 4 4 Final Carried . | . . . Class Distribution -------------------- 100% | Hacker-Mutant Dominant Class ---------------- Hacker-Mutant | -10/Materials Hacker-Mutant | -10/Mines Resources | -11 -10 -10 ----------- Run | Scr Mat Min Matter Collected 261 | 219 16 26 Remotely . | . . . Salvage Created 32 | . 32 . Parts 7 | . 7 . Haulers Intercepted . | . . . Recyclers Shooed . | . . . Parts Field Recycled . | . . . Retrieved Matter . | . . . Parts Self-Destructed . | . . . Prevented . | . . . Kills | -11 -10 -10 ------- Run | Scr Mat Min Combat Hostiles Destroyed . | . . . Classes Destroyed 1 | . 1 . Watcher 2 | . 2 . Best Kill Streak 2 | . 2 . Combat Bots Only . | . . . Max Kills in Single Turn 1 | . 1 . Gunslinging . | . . . Exploded . | . . . Melee . | . . . Uniques/NPCs Destroyed . | . . . Combat | -11 -10 -10 -------- Run | Scr Mat Min Damage Taken 644 | . 67 577 Core 257 | . 16 241 Absorbed by Shields . | . . . Core Remaining (%) 100 | 100 . . Volleys Fired 6 | . 3 3 Largest 2 | . 2 1 Hottest 70 | . 70 20 Shots Fired 9 | . 6 3 Gun 9 | . 6 3 Cannon . | . . . Launcher . | . . . Special . | . . . Kinetic 6 | . 3 3 Thermal 3 | . 3 . Explosive . | . . . Electromagnetic . | . . . Robot Hit Streak 5 | . 4 5 Robot Miss Streak 2 | . . 2 Penetration Max . | . . . Secondary Targets . | . . . Shots Hit Robots 5 | . 4 1 Core Hits 3 | . 2 1 Critical Hits . | . . . Critical Kills . | . . . Critical Parts Destroyed . | . . . Melee Attacks . | . . . Impact . | . . . Slashing . | . . . Piercing . | . . . Sneak Attacks . | . . . Combat Hostiles . | . . . Follow-up Attacks . | . . . Damage Inflicted 47 | . 24 23 Guns 47 | . 24 23 Cannons . | . . . Explosions . | . . . Melee . | . . . Ramming . | . . . Kinetic 23 | . . 23 Thermal 24 | . 24 . Explosive . | . . . Electromagnetic . | . . . Impact . | . . . Slashing . | . . . Piercing . | . . . Highest Corruption 3 | . . 3 Average Corruption 3 | . . 3 Corruption Purged . | . . . Effects 1 | . . 1 Data Loss (minor) 1 | . . 1 Overload Shots . | . . . Overflow Damage . | . . . Projectiles . | . . . Explosions . | . . . Melee . | . . . Knockbacks . | . . . Impact . | . . . Kinetic . | . . . Secondary . | . . . Self-Inflicted Damage . | . . . Shots . | . . . Rammed . | . . . Targets Rammed . | . . . Kicked . | . . . Crushed . | . . . Highest Temperature 30 | . 30 2 Average Temperature 13 | . 18 2 Received Heat Transfer 163 | . 63 100 Siege Activations . | . . . Robots Corrupted . | . . . Combat Hostiles . | . . . Parts Fried . | . . . Impact Corruptions . | . . . Robots Melted . | . . . Combat Hostiles . | . . . Parts Melted . | . . . Heat Transferred 74 | . 74 . Parts Sabotaged . | . . . Parts Stolen . | . . . Parts Stripped . | . . . Power Chain Reactions . | . . . Missiles Intercepted . | . . . Alert | -11 -10 -10 ------- Run | Scr Mat Min Peak Influence 29 | . 29 15 Average Influence 4 | . 12 1 Maximum Alert Level . | . . . Low Security (%) 100 | 100 100 100 Level 1 . | . . . Level 2 . | . . . Level 3 . | . . . Level 4 . | . . . Level 5 . | . . . High Security . | . . . Max Security . | . . . Squads Dispatched . | . . . Investigation . | . . . Extermination . | . . . Reinforcement . | . . . Assault . | . . . Garrison . | . . . Intercept . | . . . Construction Impeded . | . . . Haulers Reinforced . | . . . Stealth | -11 -10 -10 --------- Run | Scr Mat Min Distress Signals . | . . . Communications Jammed . | . . . Distress Signals . | . . . Times Spotted 29 | . 6 23 Peak Tracking Total 18 | . 3 18 Tactical Retreats 2 | . . 2 Traps | -11 -10 -10 ------- Run | Scr Mat Min Traps Triggered . | . . . Indirectly . | . . . Trap Hack Attempts . | . . . Triggered . | . . . Disarmed . | . . . Reprogrammed . | . . . Reused . | . . . Traps Extracted . | . . . Installed . | . . . Triggered . | . . . Machines | -11 -10 -10 ---------- Run | Scr Mat Min Machines Disabled . | . . . Max in Single Turn . | . . . Machines Sabotaged . | . . . Garrisons Compromised . | . . . Overloaded Fab Kills . | . . . Fab Network Shutdowns . | . . . Hacking | -11 -10 -10 --------- Run | Scr Mat Min Machines Accessed . | . . . Terminals . | . . . Fabricators . | . . . Repair Stations . | . . . Recycling Units . | . . . Scanalyzers . | . . . Garrison Access . | . . . Total Hacks . | . . . Successful . | . . . Failed . | . . . Catastrophic . | . . . Database Lockouts . | . . . Manual . | . . . Terminals . | . . . Fabricators . | . . . Repair Stations . | . . . Recycling Units . | . . . Scanalyzers . | . . . Garrison Access . | . . . Terminal Hacks . | . . . Fabricator Hacks . | . . . Repair Station Hacks . | . . . Recycling Unit Hacks . | . . . Scanalyzer . | . . . Garrison Access Hacks . | . . . Unauthorized Hacks . | . . . Terminals . | . . . Fabricators . | . . . Repair Stations . | . . . Recycling Units . | . . . Scanalyzers . | . . . Garrison Access . | . . . Data Cores Recovered . | . . . Used . | . . . Hacking Detections . | . . . Full Trace Events . | . . . Feedback Events . | . . . Feedback Blocked . | . . . Robot Schematics Acquired . | . . . Robots Built . | . . . Matter . | . . . Time . | . . . Total Robot Build Rating . | . . . Part Schematics Acquired . | . . . Parts Built . | . . . Matter . | . . . Time . | . . . Total Part Build Rating . | . . . Parts Repaired . | . . . Time . | . . . Parts Recycled . | . . . Recycled Matter . | . . . Retrieved Matter . | . . . Retrieved Components . | . . . Parts Scanalyzed . | . . . Part Schematics Acquired . | . . . Parts Damaged . | . . . Bothacking | -11 -10 -10 ------------ Run | Scr Mat Min Used RIF Installer . | . . . Robots Hacked . | . . . Non-combat . | . . . Combat . | . . . Robot Hacks Applied . | . . . Relay Couplers Released . | . . . Robots Rewired . | . . . Allies Hacked . | . . . Hacks Repelled . | . . . Allies | -11 -10 -10 -------- Run | Scr Mat Min Total Allies . | . . . Largest Group . | . . . Highest-Rated Group . | . . . Highest-Rated Ally . | . . . Total Orders . | . . . Ally Attacks . | . . . Total Damage . | . . . Kills . | . . . Allies Corrupted . | . . . Allies Melted . | . . . Intel | -11 -10 -10 ------- Run | Scr Mat Min Robot Analysis Total . | . . . Derelict Logs Recovered . | . . . Drone Launches . | . . . Drone Recoveries . | . . . Exploration | -11 -10 -10 ------------- Run | Scr Mat Min Turns Passed 210 | 68 68 74 Spaces Moved 180 | 51 50 79 Core 42 | 4 . 38 Treads . | . . . Legs 138 | 47 50 41 Wheels . | . . . Hover . | . . . Flight . | . . . Fastest Speed 50 | 50 120 50 Average Speed 103 | 114 120 86 Slowest Speed 120 | 120 120 120 Overloaded Moves . | . . . Propulsion Burnouts . | . . . Robots Hopped . | . . . Cave-ins Triggered . | . . . Exploration Rate (%) 15 | 4 18 24 Regions Visited 2 Branch Regions 1 Pre-discovered Areas . | . . . Known Exits Taken 2 | 1 1 . Unknown Exits Taken . | . . . Scrap Searched . | . . . Spaces Dug . | . . . Terrain Destroyed . | . . . Melee . | . . . Projectile . | . . . AOE . | . . . Actions | -11 -10 -10 --------- Run | Scr Mat Min Total 191 | 57 52 82 Wait . | . . . Move 178 | 50 49 79 Hop . | . . . Pick Up . | . . . Fast Attach 7 | 7 . . Attach . | . . . Detach . | . . . Swap . | . . . Drop . | . . . Fire 6 | . 3 3 Melee . | . . . Ram . | . . . Kick . | . . . Crush . | . . . Escape Stasis . | . . . Rewire . | . . . Trap . | . . . Miscellaneous . | . . . Route ------- -11/Scrapyard -10/Materials -10/Mines History --------- Turn | Location | Event 8 | -11/Scrapyard | Identified exit to Materials 8 | -11/Scrapyard | Discovered exit to Materials (range 15) 69 | -11/Scrapyard | Entered Materials 69 | -10/Materials | Evolved 1 slot: Utility x1 117 | -10/Materials | Identified exit to Mines 117 | -10/Materials | Discovered exit to Mines (range 15) 137 | -10/Materials | Entered Mines 138 | -10/Mines | Assembled infested the area 173 | -10/Mines | Core integrity fell below 50% 211 | -10/Mines | Destroyed by D-53 Grenadier with Mini Grenade Launcher Last Messages --------------- ALERT: Infestation in the mines, dispatching Demolisher response squad. Med. Laser destroyed. Targeting Computer destroyed. System corrupted by crushing effect (+3). Knocked back. Lgt. Assault Rifle destroyed. Knocked back. as-23888 destroyed. Acquired 26 matter. Knocked back. System corrupted: Component data lost. as-12622 sneak attacks. U-05 Engineer system corrupted by crushing effect. as-15643 sneak attacks. U-05 Engineer system corrupted by crushing effect. U-05 Engineer knocked back. U-05 Engineer system terminally corrupted. Lgt. Ion Engine destroyed. Aluminum Leg destroyed. as-58766 destroyed. Map ----- +----------------------------------------------------+ | ??????????## %##???????????????????? | | ?????????## #????????????????????? | | ????????## #????????????????????? | | ????????# ##?#######???????????? | | ????????# ### #???????????? | | ????????## #????????????? | | ?????????## ### #????????????? | | ?????????## ##?## #????????????? | | ????????## #???## #????????????? | | ??????### ##????## ###????????????? | | ???#### #??????## #??????????????? | | ??## #???????### #??????????????? | | ??# ##?????????# #??????????????? | | ??## ##?????###### #??????????????? | | ???## #####??????# % #??????????????? | | ????# #??????????# #### #??????????????? | | ????# #??????????# ???# ##### #????????? | | ????# #??????????# #??# #????????? | | ????# #??????????# #??# d#######????????? | | ????# #??????????# #??# %a##????????????? | | ????# ###????????# #?## d ##???????????? | | ????# #????????# ### ###?????????? | | ????## #???????## # ##????????? | | ?????# #???????# #????????? | | ?????# #???##### #######??? | | ?????# #??## @ #??? | | ?????# #### #??? | | ?????# ####### #??? | | ?????# ## #??????????? | | ?????## ##### ##??????????? | | ??????# ##???# # ##???????????? | | ??????# #???? #????????????? | | ??????# #?? ##?## ???????????? | | ??????# #?# ????#### ??????????? | | ??????# #?#????????? ?????????? | | ??????## #??????????? ???????? | | ???????#### ??????????###????????? | | ??????????## ###?????????????????????? | | ???????????######???????????????????????? | | ????????????????????????????????????????? | | | | | | | | | | | | | | | | | | | | | +----------------------------------------------------+ Best States ------------- Heat Dissipation 25 Energy Generation 10 Energy Capacity 125 Matter Stores 300 Matter Capacity 300 Sight Range 16 Terrain Scan Density 10 Resistance: KI 35 Resistance: TH 35 Resistance: EX 35 Resistance: EM 35 Resistance: I 35 Resistance: S 35 Resistance: P 35 Power Shielding 33 Evasion (%) 50 Targeting Accuracy 5 Offensive Hacking 20 Item Schematics ----------------- None Robot Schematics ------------------ None Fabricated ------------ Nothing Alien Tech Used ----------------- None Achievements -------------- None Challenges ------------ None Game ------ Seed SupercompositePlasmaMinigun Manual? 0 Play Time 00:10:48 Cumulative 14.4 hours Start 2020.03.01 @ 16:26:53 End 2020.03.01 @ 16:35:56 Sessions 1 Manual Loads 0 Difficulty Explorer Special Mode None Game No. 24 Rogue 21 Adventurer 0 Explorer 3 Win Type - Total 0 Types 0/0/0/0/0/0/0 Lore% 4 Gallery% 19 Achievement% 10 Wizard Run 0 Options --------- ASCII 0 Keyboard 0 Movement Mouse Keybinds 0 Fullscreen 1 Font 36/TerminusBold Map View 76x50 Tactical HUD 0 Map Filters NONE Filters NONE Steam 1 RUN: 0c6afd3f-e10b-42da-ac61-1a6ab8c9bc7e